fUST/lending_fUST_20240502
["ID","MTS","AMOUNT","RATE_DAILY","PERIOD"]
[325218483,1714593068692,-500.0,0.00056164,120]
[325218484,1714593068702,-265.365629,0.00056164,120]
[325218485,1714593068712,-265.365629,0.00056164,120]
[325218486,1714593068721,-500.0,0.00056164,120]
[325218487,1714593068731,-508.21,0.00056164,120]
[325218488,1714593068741,-763.31,0.00056164,120]
[325218489,1714593068750,-500.0,0.00056164,120]
[325218490,1714593068759,-573.07,0.00056164,120]
[325218491,1714593068769,-823.58,0.00056164,120]
[325218492,1714593068779,-151.0,0.00056164,120]
[325218493,1714593068788,-151.0,0.00056164,120]
[325218494,1714593068797,-151.0,0.00056164,120]
[325218495,1714593068807,-200.651343,0.00056164,120]
[325218496,1714593068816,-507.32,0.00056164,120]
[325218497,1714593068830,-500.0,0.00056164,120]
[325218498,1714593068839,-500.0,0.00056164,120]
[325218499,1714593068848,-744.84,0.00056164,120]
[325218500,1714593068858,-615.48,0.00056164,120]
[325218501,1714593068867,-674.97,0.00056164,120]
[325218502,1714593068876,-500.0,0.00056164,120]
[325218503,1714593068886,-157.756584,0.00056164,120]
[325218504,1714593068895,-779.28,0.00056164,120]
[325218505,1714593068904,-906.91,0.00056164,120]
[325218506,1714593068921,-500.0,0.00056164,120]
[325218507,1714593068930,-157.756584,0.00056164,120]
[325218508,1714593068939,-506.71,0.00056164,120]
[325218509,1714593068948,-151.0,0.00056164,120]
[325218510,1714593068958,-500.0,0.00056164,120]
[325218511,1714593068967,-500.0,0.00056164,2]
[325218512,1714593068976,-1032.99,0.00056164,120]
[325218513,1714593068987,-500.0,0.00056164,120]
[325218514,1714593069000,-500.0,0.00056164,120]
[325218515,1714593069010,-500.0,0.00056164,120]
[325218516,1714593069019,-911.15,0.00056164,120]
[325218517,1714593069031,-500.0,0.00056164,120]
[325218518,1714593069041,-500.0,0.00056164,120]
[325218519,1714593069050,-1585.85,0.00056164,120]
[325218520,1714593069060,-285.78425785,0.00056164,2]
[325218521,1714593069070,-500.0,0.00056164,60]
[325218522,1714593069084,-775.81,0.00056164,120]
[325218523,1714593069093,-500.0,0.00056164,120]
[325218524,1714593069104,-758.18,0.00056164,120]
[325218525,1714593069113,-500.0,0.00056164,120]
[325218526,1714593069122,-581.2700344,0.00056164,120]
[325218527,1714593069131,-500.0,0.00056164,120]
[325218528,1714593069140,-665.4,0.00056164,120]
[325218529,1714593069149,-802.71,0.00056164,120]
[325218530,1714593069159,-500.0,0.00056164,120]
[325218531,1714593069168,-566.46,0.00056164,120]
[325218532,1714593069177,-944.27,0.00056164,120]
[325218533,1714593069186,-500.0,0.00056164,120]
[325218534,1714593069196,-881.93,0.00056164,120]
[325218535,1714593069206,-847.91,0.00056164,120]
[325218536,1714593069217,-795.4,0.00056164,120]
[325218537,1714593069227,-522.89,0.00056164,120]
[325218538,1714593069236,-151.0,0.00056164,120]
[325218539,1714593069246,-974.05,0.00056164,120]
[325218540,1714593069255,-970.75,0.00056164,120]
[325218541,1714593069265,-538.66,0.00056164,120]
[325218542,1714593069274,-500.0,0.00056164,120]
[325218543,1714593069283,-737.33,0.00056164,120]
[325218544,1714593069293,-508.75,0.00056164,120]
[325218545,1714593069303,-1437.5,0.00056164,120]
[325218546,1714593069313,-999.27,0.00056164,120]
[325218547,1714593069339,-500.0,0.00056164,120]
[325218548,1714593069349,-500.0,0.00056164,120]
[325218549,1714593069361,-788.45,0.00056164,120]
[325218550,1714593069371,-533.41,0.00056164,120]
[325218551,1714593069381,-988.92,0.00056164,120]
[325218552,1714593069391,-500.0,0.00056164,120]
[325218553,1714593069401,-2957.5,0.00056164,120]
[325218554,1714593069413,-500.0,0.00056164,120]
[325218555,1714593069574,-702.321336,0.00056164,120]
[325218556,1714593069594,-2581.51217656,0.00056164,120]
[325218557,1714593070100,-2579.32,0.00035616,3]
[325218558,1714593070112,-518.97989705,0.00052876,120]
[325218559,1714593070122,-154.78330338,0.00052876,2]
[325218560,1714593070132,-500.0,0.00052876,120]
[325218561,1714593070142,-274.19206625,0.00052876,120]
[325218562,1714593070153,-225.80793375,0.00052876,120]
[325218563,1714593070162,-500.0,0.00052876,7]
[325218564,1714593070172,-211.665744,0.00053424,7]
[325218565,1714593070182,-500.0,0.00053424,120]
[325218566,1714593070191,-500.0,0.00053424,120]
[325218567,1714593070201,-675.29,0.00053972,120]
[325218568,1714593070211,-211.665744,0.00053972,7]
[325218569,1714593070221,-500.0,0.00053972,120]
[325218570,1714593070230,-675.29,0.0005452,120]
[325218571,1714593070252,-211.665744,0.0005452,7]
[325218572,1714593070264,-211.665744,0.0005452,7]
[325218573,1714593070279,-500.0,0.0005452,120]
[325218574,1714593070295,-500.0,0.00055068,120]
[325218575,1714593070305,-675.29,0.00055068,120]
[325218576,1714593070315,-211.665744,0.00055068,30]
[325218577,1714593070332,-211.665744,0.00055068,30]
[325218578,1714593070355,-500.0,0.00055616,120]
[325218579,1714593070365,-675.29,0.00055616,120]
[325218580,1714593070376,-391.63782344,0.00056164,120]
[325218581,1714593070387,-702.321336,0.00056164,120]
[325218582,1714593070396,-500.0,0.00056164,120]
[325218583,1714593070412,-637.17,0.00056164,120]
[325218584,1714593070422,-558.95,0.00056164,120]
[325218585,1714593070431,-500.0,0.00056164,120]
[325218586,1714593070441,-521.78,0.00056164,120]
[325218587,1714593070450,-500.0,0.00056164,120]
[325218588,1714593070460,-551.81231136,0.00056164,120]
[325218589,1714593070470,-1001.57,0.00056164,120]
[325218590,1714593070480,-358.68115619,0.00056164,120]
[325218591,1714593070490,-500.0,0.00056164,120]
[325218592,1714593070499,-672.31,0.00056164,120]
[325218593,1714593070508,-506.22,0.00056164,120]
[325218594,1714593070518,-500.0,0.00056164,120]
[325218595,1714593070527,-500.0,0.00056164,120]
[325218596,1714593070537,-500.0,0.00056164,120]
[325218597,1714593070546,-123.30936375,0.00056164,120]
[325218598,1714593070558,-376.69063625,0.00056164,120]
[325218599,1714593070570,-623.31,0.00056164,120]
[325218600,1714593070583,-500.0,0.00056164,120]
[325218601,1714593070592,-151.0,0.00056164,120]
[325218602,1714593070606,-500.0,0.00056164,120]
[325218603,1714593070624,-151.0,0.00056164,120]
[325218604,1714593070648,-1000.0,0.00056164,120]
[325218605,1714593070663,-500.0,0.00056164,120]
[325218606,1714593070677,-500.0,0.00056164,120]
[325218607,1714593070693,-500.0,0.00056164,120]
[325218608,1714593070709,-2973.1,0.00056164,120]
[325218609,1714593070723,-1542.18828473,0.00056164,120]
[325218610,1714593070740,-9559.23171527,0.00056164,120]
[325218611,1714593070751,-912.14,0.00056164,120]
[325218612,1714593070766,-500.0,0.00056164,120]
[325218613,1714593070780,-500.0,0.00056164,120]
[325218614,1714593070790,-500.0,0.00056164,120]
[325218615,1714593070806,-1030.03,0.00056164,120]
[325218616,1714593070818,-500.0,0.00056164,120]
[325218617,1714593070872,-500.0,0.00056164,120]
[325218618,1714593070883,-502.4336532,0.00056164,120]
[325218619,1714593070895,-870.89,0.00056164,120]
[325218620,1714593070904,-853.15,0.00056164,120]
[325218621,1714593070914,-593.6,0.00056164,120]
[325218622,1714593070932,-500.0,0.00056164,120]
[325218623,1714593070948,-500.0,0.00056164,120]
[325218624,1714593070976,-500.0,0.00056164,120]
[325218625,1714593070996,-500.0,0.00056164,120]
[325218626,1714593071030,-664.12,0.00056164,120]
[325218627,1714593071053,-880.22,0.00056164,120]
[325218628,1714593071063,-511.6,0.00056164,60]
[325218629,1714593071078,-500.0,0.00056164,120]
[325218630,1714593071087,-500.0,0.00056164,120]
[325218631,1714593071099,-7436.85,0.00056164,120]
[325218632,1714593071109,-303.490742,0.00056164,120]
[325218633,1714593071119,-500.0,0.00056164,120]
[325218634,1714593071128,-817.28,0.00056164,7]
[325218635,1714593071137,-240.34761061,0.00056164,120]
[325218636,1714593071147,-303.490742,0.00056164,120]
[325218637,1714593071156,-500.0,0.00056164,120]
[325218638,1714593071166,-165.130827,0.00056164,120]
[325218639,1714593071176,-425.386949,0.00056164,120]
[325218640,1714593071186,-165.130827,0.00056164,120]
[325218641,1714593071196,-425.386949,0.00056164,120]
[325218642,1714593071205,-1682.03,0.00056164,120]
[325218643,1714593071214,-500.0,0.00056164,120]
[325218644,1714593071224,-500.0,0.00056164,120]
[325218645,1714593071233,-1477.84,0.00056164,120]
[325218646,1714593071243,-151.0,0.00056164,120]
[325218647,1714593071252,-500.0,0.00056164,120]
[325218648,1714593071262,-151.0,0.00056164,120]
[325218649,1714593071271,-1094.82,0.00056164,21]
[325218650,1714593071281,-1203.86,0.00056164,120]
[325218651,1714593071291,-2239.08,0.00056164,2]
[325218652,1714593071301,-1245.68,0.00056164,120]
[325218653,1714593071311,-194.88794157,0.00056164,120]
[325218667,1714593647728,-4152.56435314,0.000125,2]
[325218668,1714593647757,-190.1871099,0.00019589,2]
[325218669,1714593647782,-291.66119089,0.0001959,2]
[325218670,1714593647808,-17515.58734607,0.00019591,2]
[325218683,1714593891105,186.35993728,9.999e-05,2]
[325218689,1714593956589,379.53531224,9.999e-05,2]
[325218692,1714594077013,1091.78088148,9.999e-05,2]
[325218750,1714594232139,-379.53531224,0.00019287,2]
[325218752,1714594232149,-1058.56850206,0.00019287,2]
[325218758,1714594232196,-31.29395486,0.00019287,2]
[325218760,1714594232206,-263.90834832,0.00019287,2]
[325218762,1714594232216,-717.98897193,0.00019287,2]
[325218764,1714594232225,-155.6038988,0.00019288,2]
[325218766,1714594232234,-185.6564932,0.00019288,2]
[325218768,1714594232244,-710.77308456,0.00019289,2]
[325218770,1714594232253,-1621.94326618,0.00019289,2]
[325218772,1714594232262,-28972.65533242,0.00019289,2]
[325218774,1714594232271,-20366.87353264,0.0001929,2]
[325218839,1714594238353,-526.99118961,0.00019287,2]
[325218840,1714594238364,-4533.12646736,0.0001929,2]
[325218841,1714594238374,-225.0025954,0.00019478,2]
[325218842,1714594238383,-2084.30400312,0.00019591,2]
[325218843,1714594238393,-8844.11235338,0.00019591,2]
[325218844,1714594238403,-2634.83520626,0.00019591,2]
[325218845,1714594238413,-1857.37665835,0.000199,2]
[325218846,1714594238423,-875.09143189,0.0002,10]
[325218847,1714594238432,-309.53574583,0.00020911,2]
[325218848,1714594238441,-154.82968734,0.00020911,2]
[325218849,1714594238451,-154.82968734,0.00020911,2]
[325218850,1714594238461,-2399.60143739,0.00020912,2]
[325218851,1714594238470,-565.13944552,0.00020912,2]
[325218852,1714594238479,-466.46671286,0.00034,4]
[325218853,1714594238490,-632.50190654,0.0003717,2]
[325218854,1714594238503,-521.10717288,0.00038722,7]
[325218855,1714594238512,-5000.0,0.00039,4]
[325218856,1714594238522,-9426.739,0.00039581,30]
[325218857,1714594238531,-2149.43,0.0004012,3]
[325218858,1714594238541,-1791.19,0.0004012,3]
[325218859,1714594238551,-1492.66,0.0004012,3]
[325218860,1714594238560,-151.0,0.00040129,2]
[325218861,1714594238570,-111568.15146536,0.0004013,2]
[325218862,1714594238579,-154.8510483,0.00040607,30]
[325218863,1714594238590,-193.17777276,0.00040996,2]
[325218864,1714594238599,-500.0,0.00041096,31]
[325218865,1714594238609,-335.23434718,0.00041096,31]
[325218866,1714594238619,-157.84606034,0.00042341,30]
[325218867,1714594238628,-151.0,0.00045,120]
[325218868,1714594238638,-152.90186699,0.00045439,30]
[325218869,1714594238647,-151.0,0.00046575,120]
[325218870,1714594238657,-493.0,0.00046814,2]
[325218871,1714594238666,-151.0,0.00048137,120]
[325218872,1714594238675,-151.0,0.00049699,120]
[325218873,1714594238684,-393.669958,0.00049863,2]
[325218874,1714594238694,-267.650158,0.00049863,2]
[325218875,1714594238703,-995.56871615,0.0005,15]
[325218876,1714594238712,-8562.38280706,0.0005,120]
[325218877,1714594238722,-354.57887113,0.0005,7]
[325218878,1714594238731,-151.0,0.0005,120]
[325218879,1714594238742,-257.40059157,0.00050281,60]
[325218880,1714594238756,-521.10717288,0.00050844,60]
[325218881,1714594238766,-154.8510483,0.00050859,60]
[325218882,1714594238776,-151.0,0.0005126,120]
[325218883,1714594238786,-500.0,0.00052054,120]
[325218884,1714594238795,-500.0,0.00052054,120]
[325218885,1714594238804,-500.0,0.00052054,120]
[325218886,1714594238814,-500.0,0.00052054,120]
[325218887,1714594238824,-166.666666,0.00052055,2]
[325218888,1714594238833,-150.80395486,0.00052329,2]
[325218889,1714594238843,-2000.0,0.00052676,2]
[325218890,1714594238853,-176.68,0.00052775,7]
[325218891,1714594238862,-176.68,0.00052775,7]
[325218892,1714594238871,-176.68,0.00052775,7]
[325218893,1714594238881,-7475.54571973,0.00052776,61]
[325218894,1714594238890,-88888.0,0.00052776,120]
[325218895,1714594238899,-151.0,0.00052822,120]
[325218896,1714594238909,-500.0,0.00052874,120]
[325218897,1714594238918,-999.0,0.00052874,120]
[325218898,1714594238928,-999.0,0.00052874,120]
[325218899,1714594238937,-875.19,0.00052874,120]
[325218900,1714594238946,-500.0,0.00052875,120]
[325218901,1714594238956,-500.0,0.00052875,120]
[325218902,1714594238966,-500.0,0.00052875,120]
[325218903,1714594238975,-500.0,0.00052875,120]
[325218904,1714594238984,-500.0,0.00052875,120]
[325218905,1714594238995,-500.0,0.00052875,120]
[325218906,1714594239005,-500.0,0.00052875,120]
[325218907,1714594239015,-408.04024175,0.00052876,120]
[325218908,1714594239024,-500.0,0.00052876,120]
[325218909,1714594239033,-500.0,0.00052876,120]
[325218910,1714594239042,-500.0,0.00052876,120]
[325218911,1714594239051,-500.0,0.00052876,120]
[325218912,1714594239061,-500.0,0.00052876,120]
[325218913,1714594239070,-500.0,0.00052876,120]
[325218914,1714594239080,-500.0,0.00052876,120]
[325218915,1714594239089,-500.0,0.00052876,120]
[325218916,1714594239099,-500.0,0.00052876,120]
[325218917,1714594239108,-510.57560855,0.00052876,120]
[325218918,1714594239117,-500.0,0.00052876,120]
[325218919,1714594239126,-500.0,0.00052876,120]
[325218920,1714594239135,-585.1803234,0.00052876,120]
[325218921,1714594239144,-500.0,0.00052876,120]
[325218922,1714594239153,-500.0,0.00052876,120]
[325218923,1714594239162,-500.0,0.00052876,120]
[325218924,1714594239172,-500.0,0.00052876,120]
[325218925,1714594239181,-500.0,0.00052876,120]
[325218926,1714594239191,-500.0,0.00052876,120]
[325218927,1714594239200,-500.0,0.00052876,120]
[325218928,1714594239208,-500.0,0.00052876,120]
[325218929,1714594239218,-500.0,0.00052876,120]
[325218930,1714594239227,-528.01,0.00052876,120]
[325218931,1714594239236,-500.0,0.00052876,120]
[325218932,1714594239248,-500.0,0.00052876,120]
[325218933,1714594239257,-500.0,0.00052876,120]
[325218934,1714594239267,-500.0,0.00052876,120]
[325218935,1714594239276,-500.0,0.00052876,120]
[325218936,1714594239286,-500.0,0.00052876,120]
[325218937,1714594239295,-500.0,0.00052876,120]
[325218938,1714594239304,-500.0,0.00052876,120]
[325218939,1714594239314,-500.0,0.00052876,120]
[325218940,1714594239323,-500.0,0.00052876,120]
[325218941,1714594239334,-500.0,0.00052876,120]
[325218942,1714594239343,-737.79,0.00052876,120]
[325218943,1714594239352,-500.0,0.00052876,120]
[325218944,1714594239362,-500.0,0.00052876,120]
[325218945,1714594239371,-500.0,0.00052876,120]
[325218946,1714594239380,-500.0,0.00052876,120]
[325218947,1714594239389,-500.0,0.00052876,120]
[325218948,1714594239398,-500.0,0.00052876,120]
[325218949,1714594239409,-500.0,0.00052876,120]
[325218950,1714594239418,-500.0,0.00052876,120]
[325218951,1714594239427,-500.0,0.00052876,120]
[325218952,1714594239436,-500.0,0.00052876,60]
[325218953,1714594239445,-418.10804058,0.00052876,120]
[325218954,1714594239454,-500.0,0.00052876,120]
[325218955,1714594239463,-504.60657867,0.00052876,120]
[325218956,1714594239471,-500.0,0.00052876,120]
[325218957,1714594239480,-500.30006974,0.00052876,120]
[325218958,1714594239488,-500.0,0.00052876,120]
[325218959,1714594239499,-498.92036882,0.00052876,120]
[325218960,1714594239508,-739.19,0.00052876,120]
[325218961,1714594239517,-500.0,0.00052876,120]
[325218962,1714594239526,-500.0,0.00052876,120]
[325218963,1714594239535,-500.0,0.00052876,120]
[325218964,1714594239544,-871.44,0.00052876,120]
[325218965,1714594239553,-500.0,0.00052876,120]
[325218966,1714594239562,-500.0,0.00052876,120]
[325218967,1714594239571,-500.0,0.00052876,120]
[325218968,1714594239580,-500.0,0.00052876,120]
[325218969,1714594239589,-898.93,0.00052876,120]
[325218970,1714594239598,-500.0,0.00052876,120]
[325218971,1714594239607,-501.23310096,0.00052876,120]
[325218972,1714594239616,-500.0,0.00052876,120]
[325218973,1714594239625,-500.0,0.00052876,120]
[325218974,1714594239634,-500.0,0.00052876,120]
[325218975,1714594239643,-500.0,0.00052876,120]
[325218976,1714594239651,-514.23066112,0.00052876,120]
[325218977,1714594239660,-500.0,0.00052876,120]
[325218978,1714594239669,-500.0,0.00052876,120]
[325218979,1714594239678,-684.61,0.00052876,120]
[325218980,1714594239687,-283.60326409,0.00052876,120]
[325218981,1714594239696,-500.0,0.00052876,120]
[325218982,1714594239705,-500.0,0.00052876,120]
[325218983,1714594239714,-500.0,0.00052876,120]
[325218984,1714594239722,-500.0,0.00052876,120]
[325218985,1714594239731,-500.0,0.00052876,120]
[325218986,1714594239741,-500.0,0.00052876,120]
[325218987,1714594239751,-500.0,0.00052876,120]
[325218988,1714594239761,-500.0,0.00052876,120]
[325218989,1714594239770,-500.0,0.00052876,120]
[325218990,1714594239780,-500.0,0.00052876,120]
[325218991,1714594239789,-500.0,0.00052876,120]
[325218992,1714594239799,-500.0,0.00052876,120]
[325218993,1714594239808,-500.0,0.00052876,120]
[325218994,1714594239817,-500.0,0.00052876,120]
[325218995,1714594239826,-500.0,0.00052876,120]
[325218996,1714594239835,-500.0,0.00052876,120]
[325218997,1714594239844,-435.76601335,0.00052876,120]
[325218998,1714594239853,-500.0,0.00052876,120]
[325218999,1714594239862,-500.0,0.00052876,120]
[325219000,1714594239871,-500.0,0.00052876,120]
[325219001,1714594239881,-500.0,0.00052876,120]
[325219002,1714594239890,-500.0,0.00052876,120]
[325219003,1714594239899,-504.43,0.00052876,120]
[325219004,1714594239909,-500.0,0.00052876,120]
[325219005,1714594239919,-500.0,0.00052876,120]
[325219006,1714594239928,-500.0,0.00052876,120]
[325219008,1714594239937,-500.0,0.00052876,120]
[325219009,1714594239946,-500.0,0.00052876,2]
[325219011,1714594239955,-500.0,0.00052876,120]
[325219013,1714594239965,-500.0,0.00052876,120]
[325219015,1714594239973,-500.0,0.00052876,120]
[325219017,1714594239983,-515.61,0.00052876,120]
[325219018,1714594239992,-500.0,0.00052876,120]
[325219020,1714594240001,-1000.0,0.00052876,120]
[325219023,1714594240011,-500.0,0.00052876,120]
[325219024,1714594240020,-758.4,0.00052876,120]
[325219027,1714594240030,-565.37,0.00052876,120]
[325219029,1714594240039,-500.0,0.00052876,120]
[325219030,1714594240048,-500.0,0.00052876,120]
[325219033,1714594240059,-500.0,0.00052876,120]
[325219035,1714594240068,-509.7198587,0.00052876,120]
[325219037,1714594240077,-500.0,0.00052876,120]
[325219038,1714594240086,-500.0,0.00052876,20]
[325219040,1714594240095,-500.0,0.00052876,120]
[325219042,1714594240104,-500.0,0.00052876,120]
[325219044,1714594240114,-619.74279753,0.00052876,120]
[325219047,1714594240123,-500.0,0.00052876,120]
[325219048,1714594240132,-500.0,0.00052876,120]
[325219051,1714594240141,-722.48,0.00052876,120]
[325219052,1714594240150,-500.0,0.00052876,120]
[325219054,1714594240159,-430.16731504,0.00052876,120]
[325219057,1714594240169,-542.5372522,0.00052876,120]
[325219058,1714594240178,-500.0,0.00052876,120]
[325219060,1714594240187,-500.0,0.00052876,120]
[325219062,1714594240196,-500.0,0.00052876,120]
[325219065,1714594240206,-500.70477529,0.00052876,120]
[325219067,1714594240215,-500.0,0.00052876,120]
[325219069,1714594240224,-500.0,0.00052876,120]
[325219071,1714594240234,-160.06376333,0.00052876,2]
[325219073,1714594240246,-500.0,0.00052876,120]
[325219075,1714594240255,-500.0,0.00052876,120]
[325219077,1714594240263,-500.0,0.00052876,120]
[325219079,1714594240273,-500.0,0.00052876,120]
[325219081,1714594240281,-500.0,0.00052876,120]
[325219082,1714594240291,-1476.82,0.00052876,120]
[325219084,1714594240300,-412.16909245,0.00052876,2]
[325219086,1714594240309,-619.66593288,0.00052876,120]
[325219088,1714594240323,-500.0,0.00052876,120]
[325219090,1714594240333,-500.0,0.00052876,2]
[325219092,1714594240342,-500.0,0.00052876,120]
[325219094,1714594240351,-500.0,0.00052876,120]
[325219096,1714594240362,-500.0,0.00052876,120]
[325219098,1714594240371,-500.0,0.00052876,120]
[325219100,1714594240380,-500.0,0.00052876,120]
[325219103,1714594240392,-500.0,0.00052876,120]
[325219104,1714594240403,-500.0,0.00052876,2]
[325219106,1714594240412,-500.0,0.00052876,120]
[325219108,1714594240422,-500.0,0.00052876,120]
[325219111,1714594240431,-500.0,0.00052876,120]
[325219112,1714594240441,-369.25973567,0.00052876,120]
[325219115,1714594240450,-858.97,0.00052876,120]
[325219117,1714594240460,-500.0,0.00052876,120]
[325219119,1714594240470,-500.0,0.00052876,2]
[325219120,1714594240479,-994.28,0.00052876,120]
[325219123,1714594240489,-500.0,0.00052876,120]
[325219125,1714594240501,-500.0,0.00052876,120]
[325219126,1714594240510,-500.0,0.00052876,120]
[325219129,1714594240519,-500.0,0.00052876,120]
[325219131,1714594240529,-877.01,0.00052876,120]
[325219133,1714594240540,-500.0,0.00052876,120]
[325219135,1714594240549,-500.0,0.00052876,2]
[325219137,1714594240559,-500.0,0.00052876,120]
[325219139,1714594240568,-500.0,0.00052876,120]
[325219141,1714594240578,-500.0,0.00052876,120]
[325219143,1714594240587,-500.0,0.00052876,120]
[325219145,1714594240596,-500.0,0.00052876,120]
[325219147,1714594240605,-500.0,0.00052876,120]
[325219149,1714594240615,-500.0,0.00052876,120]
[325219150,1714594240624,-500.0,0.00052876,120]
[325219153,1714594240633,-641.81,0.00052876,120]
[325219154,1714594240642,-731.29,0.00052876,120]
[325219157,1714594240652,-500.0,0.00052876,120]
[325219158,1714594240661,-513.78525612,0.00052876,120]
[325219160,1714594240670,-500.0,0.00052876,120]
[325219163,1714594240680,-500.0,0.00052876,120]
[325219164,1714594240689,-500.0,0.00052876,120]
[325219166,1714594240699,-500.0,0.00052876,120]
[325219168,1714594240708,-500.0,0.00052876,120]
[325219170,1714594240718,-500.0,0.00052876,120]
[325219173,1714594240727,-271.99277122,0.00052876,120]
[325219175,1714594240736,-500.0,0.00052876,120]
[325219177,1714594240750,-500.0,0.00052876,120]
[325219179,1714594240759,-523.34,0.00052876,120]
[325219181,1714594240768,-500.0,0.00052876,120]
[325219183,1714594240778,-500.0,0.00052876,120]
[325219185,1714594240787,-500.0,0.00052876,120]
[325219187,1714594240797,-500.0,0.00052876,120]
[325219189,1714594240806,-500.0,0.00052876,120]
[325219191,1714594240815,-500.0,0.00052876,120]
[325219193,1714594240825,-500.0,0.00052876,120]
[325219195,1714594240834,-500.0,0.00052876,120]
[325219197,1714594240844,-500.0,0.00052876,120]
[325219199,1714594240854,-500.0,0.00052876,120]
[325219201,1714594240863,-500.0,0.00052876,120]
[325219203,1714594240873,-838.84,0.00052876,120]
[325219205,1714594240882,-500.0,0.00052876,120]
[325219207,1714594240892,-500.0,0.00052876,120]
[325219208,1714594240901,-500.0,0.00052876,120]
[325219210,1714594240911,-500.0,0.00052876,120]
[325219211,1714594240920,-500.0,0.00052876,120]
[325219212,1714594240929,-500.0,0.00052876,120]
[325219214,1714594240939,-769.02,0.00052876,120]
[325219216,1714594240948,-500.0,0.00052876,120]
[325219218,1714594240958,-500.0,0.00052876,120]
[325219219,1714594240968,-565.9,0.00052876,120]
[325219220,1714594240977,-500.0,0.00052876,120]
[325219221,1714594240986,-500.0,0.00052876,120]
[325219222,1714594240998,-500.0,0.00052876,120]
[325219223,1714594241007,-500.0,0.00052876,120]
[325219224,1714594241016,-500.0,0.00052876,120]
[325219225,1714594241025,-500.0,0.00052876,120]
[325219226,1714594241034,-500.0,0.00052876,120]
[325219227,1714594241044,-500.0,0.00052876,120]
[325219228,1714594241053,-500.0,0.00052876,120]
[325219229,1714594241063,-500.0,0.00052876,120]
[325219230,1714594241072,-400.23008702,0.00052876,120]
[325219231,1714594241081,-938.56,0.00052876,120]
[325219232,1714594241090,-500.0,0.00052876,120]
[325219233,1714594241101,-500.0,0.00052876,120]
[325219235,1714594241110,-500.0,0.00052876,120]
[325219237,1714594241119,-500.0,0.00052876,120]
[325219239,1714594241128,-520.59853225,0.00052876,120]
[325219240,1714594241137,-640.98,0.00052876,120]
[325219241,1714594241147,-500.0,0.00052876,120]
[325219242,1714594241157,-500.0,0.00052876,120]
[325219243,1714594241166,-300.0,0.00052876,2]
[325219244,1714594241175,-410.11147353,0.00052876,120]
[325219245,1714594241184,-500.0,0.00052876,120]
[325219246,1714594241193,-1319.65,0.00052876,120]
[325219247,1714594241203,-923.21,0.00052876,120]
[325219248,1714594241212,-500.0,0.00052876,120]
[325219249,1714594241221,-573.09157035,0.00052876,120]
[325219250,1714594241231,-500.0,0.00052876,120]
[325219251,1714594241242,-500.0,0.00052876,120]
[325219252,1714594241252,-500.0,0.00052876,120]
[325219253,1714594241262,-500.0,0.00052876,120]
[325219254,1714594241272,-500.0,0.00052876,120]
[325219255,1714594241281,-500.0,0.00052876,120]
[325219256,1714594241291,-500.0,0.00052876,120]